[Event "*** Titled Tuesday Blitz"]
[Site "Chess.com"]
[Date "2018.08.07"]
[Round "4"]
[White "JSMastropiero"]
[Black "RitvarsReimanis"]
[Result "1/2-1/2"]
[WhiteElo "2318"]
[BlackElo "2431"]
[TimeControl "180+2"]
[EndTime "13:49:56 PDT"]
[Termination "Game drawn by agreement"]

1. d4 {[%clk 0:03:01.9]} 1... Nf6 {[%clk 0:02:45.7]} 2. c4 {[%clk 0:03:00.6]}
2... e6 {[%clk 0:02:43]} 3. Nc3 {[%clk 0:03:00.9]} 3... Bb4 {[%clk 0:02:42.1]}
4. e3 {[%clk 0:03:01.6]} 4... O-O {[%clk 0:02:42.7]} 5. Bd3 {[%clk 0:03:01.7]}
5... c5 {[%clk 0:02:42.8]} 6. Ne2 {[%clk 0:03:02.4]} 6... cxd4 {[%clk
0:02:43.7]} 7. exd4 {[%clk 0:03:02.8]} 7... d5 {[%clk 0:02:45.1]} 8. cxd5 {[%clk
0:03:01.6]} 8... Nxd5 {[%clk 0:02:44.2]} 9. O-O {[%clk 0:03:01.7]} 9... Nc6
{[%clk 0:02:44.7]} 10. a3 {[%clk 0:02:56.5]} 10... Be7 {[%clk 0:02:45.1]} 11.
Be3 {[%clk 0:02:42.7]} 11... a6 {[%clk 0:02:40.2]} 12. Nxd5 {[%clk 0:02:36.7]}
12... Qxd5 {[%clk 0:02:40.5]} 13. Nc3 {[%clk 0:02:36.9]} 13... Qd6 {[%clk
0:02:38.2]} 14. d5 {[%clk 0:02:36.8]} 14... Ne5 {[%clk 0:02:19.6]} 15. Be2
{[%clk 0:02:29]} 15... Ng6 {[%clk 0:02:14]} 16. Qb3 {[%clk 0:02:19.9]} 16... b5
{[%clk 0:02:11.8]} 17. Rfd1 {[%clk 0:02:15.2]} 17... Qe5 {[%clk 0:01:42.4]} 18.
Bf3 {[%clk 0:01:51]} 18... Rb8 {[%clk 0:01:40.9]} 19. Bd4 {[%clk 0:01:35.3]}
19... Qf5 {[%clk 0:01:35.2]} 20. Be4 {[%clk 0:01:27.2]} 20... Qh5 {[%clk
0:01:31.5]} 21. Ba7 {[%clk 0:01:03.6]} 21... Rb7 {[%clk 0:01:29.5]} 22. Be3
{[%clk 0:00:49.7]} 22... exd5 {[%clk 0:01:30.4]} 23. Nxd5 {[%clk 0:00:46.8]}
23... Be6 {[%clk 0:01:31.5]} 24. Nxe7+ {[%clk 0:00:44.4]} 24... Rxe7 {[%clk
0:01:33.4]} 25. Qb4 {[%clk 0:00:42]} 25... Rc7 {[%clk 0:01:30.4]} 26. Bf3 {[%clk
0:00:38.9]} 26... Qh4 {[%clk 0:01:24.4]} 27. Qxh4 {[%clk 0:00:30]} 27... Nxh4
{[%clk 0:01:26.3]} 28. Be4 {[%clk 0:00:31.4]} 28... Bf5 {[%clk 0:01:19]} 29. Bd5
{[%clk 0:00:25.8]} 29... Rc2 {[%clk 0:01:11.9]} 30. Bd4 {[%clk 0:00:23.9]} 30...
Ng6 {[%clk 0:01:09.8]} 31. Bc3 {[%clk 0:00:24.1]} 31... Nf4 {[%clk 0:01:09.7]}
32. Bb3 {[%clk 0:00:18.9]} 32... Ne2+ {[%clk 0:01:08.4]} 33. Kf1 {[%clk
0:00:19.1]} 33... Nxc3 {[%clk 0:01:03.8]} 34. Bxc2 {[%clk 0:00:19.6]} 34... Nxd1
{[%clk 0:01:05.1]} 35. Bxd1 {[%clk 0:00:20.3]} 35... Bd3+ {[%clk 0:01:02.1]} 36.
Be2 {[%clk 0:00:21.2]} 36... Re8 {[%clk 0:01:04]} 37. Bxd3 {[%clk 0:00:21.8]}
37... Rd8 {[%clk 0:01:05.2]} 38. Rc1 {[%clk 0:00:21.1]} 38... g6 {[%clk
0:01:05.6]} 39. Ke2 {[%clk 0:00:20.7]} 39... Rd6 {[%clk 0:01:06.9]} 40. Rc8+
{[%clk 0:00:21]} 40... Kg7 {[%clk 0:01:07.9]} 41. Rc7 {[%clk 0:00:22.6]} 41...
h5 {[%clk 0:01:08.6]} 42. Bc2 {[%clk 0:00:22.8]} 42... Kf8 {[%clk 0:01:08.7]}
43. Bb3 {[%clk 0:00:23.9]} 43... f6 {[%clk 0:01:08.7]} 44. Ke3 {[%clk
0:00:23.4]} 44... g5 {[%clk 0:01:09.6]} 45. Rf7+ {[%clk 0:00:19.4]} 45... Ke8
{[%clk 0:01:09.8]} 46. Rh7 {[%clk 0:00:20.9]} 46... h4 {[%clk 0:01:10.7]} 47. h3
{[%clk 0:00:21.6]} 47... Kd8 {[%clk 0:01:10]} 48. f4 {[%clk 0:00:22.6]} 48...
gxf4+ {[%clk 0:01:07]} 49. Kxf4 {[%clk 0:00:23.8]} 49... Rd2 {[%clk 0:01:07.3]}
50. Rxh4 {[%clk 0:00:20.2]} 50... Rd4+ {[%clk 0:01:07.1]} 51. Kg3 {[%clk
0:00:20.7]} 51... Rd3+ {[%clk 0:01:08.3]} 52. Kf4 {[%clk 0:00:22]} 52... Rd4+
{[%clk 0:01:08.7]} 53. Kg3 {[%clk 0:00:18.6]} 53... Rd3+ {[%clk 0:01:09.8]} 54.
Kg4 {[%clk 0:00:19.6]} 54... Rxb3 {[%clk 0:01:08.7]} 55. Kf5 {[%clk 0:00:20.7]}
55... Rxb2 {[%clk 0:01:05.8]} 56. Rd4+ {[%clk 0:00:21.4]} 56... Ke7 {[%clk
0:01:05.6]} 57. g4 {[%clk 0:00:22.9]} 57... Rb3 {[%clk 0:01:06.6]} 58. a4 {[%clk
0:00:22.5]} 58... Rf3+ {[%clk 0:01:03]} 59. Kg6 {[%clk 0:00:22.1]} 59... Rxh3
{[%clk 0:01:04.2]} 60. axb5 {[%clk 0:00:22.7]} 60... axb5 {[%clk 0:01:04.5]} 61.
Rb4 {[%clk 0:00:23.9]} 61... Rg3 {[%clk 0:01:00.9]} 62. Kf5 {[%clk 0:00:23.2]}
62... Rf3+ {[%clk 0:01:02]} 63. Ke4 {[%clk 0:00:23.9]} 63... Rf1 {[%clk
0:00:51.8]} 64. Rxb5 {[%clk 0:00:24.3]} 64... Kf7 {[%clk 0:00:52.5]} 65. g5
{[%clk 0:00:23.4]} 65... fxg5 {[%clk 0:00:49.8]} 66. Rxg5 {[%clk 0:00:24.1]}
66... Kf6 {[%clk 0:00:49.4]} 67. Rg3 {[%clk 0:00:24.5]} 1/2-1/2

[Event "*** Titled Tuesday Blitz"]
[Site "Chess.com"]
[Date "2018.08.07"]
[Round "4"]
[White "Annawel"]
[Black "ftorodent"]
[Result "1-0"]
[WhiteElo "2799"]
[BlackElo "2534"]
[TimeControl "180+2"]
[EndTime "13:50:11 PDT"]
[Termination "Annawel won by resignation"]

1. e4 {[%clk 0:03:01.9]} 1... e6 {[%clk 0:02:59.9]} 2. d4 {[%clk 0:02:59.9]}
2... d5 {[%clk 0:03:00.6]} 3. exd5 {[%clk 0:03:01.8]} 3... exd5 {[%clk
0:03:00.9]} 4. Nf3 {[%clk 0:03:03.7]} 4... Nf6 {[%clk 0:03:01.2]} 5. Bd3 {[%clk
0:03:03.6]} 5... Bd6 {[%clk 0:03:01.1]} 6. Qe2+ {[%clk 0:03:04.8]} 6... Qe7
{[%clk 0:03:00.8]} 7. Qxe7+ {[%clk 0:03:05.4]} 7... Bxe7 {[%clk 0:02:58.9]} 8.
O-O {[%clk 0:03:06.6]} 8... O-O {[%clk 0:02:59.3]} 9. Nc3 {[%clk 0:03:04.8]}
9... c6 {[%clk 0:02:59.8]} 10. Ne5 {[%clk 0:03:04.7]} 10... Nfd7 {[%clk
0:02:28.7]} 11. f4 {[%clk 0:02:58.7]} 11... Nxe5 {[%clk 0:02:20.7]} 12. fxe5
{[%clk 0:02:53.3]} 12... f6 {[%clk 0:02:21.7]} 13. exf6 {[%clk 0:02:28.6]} 13...
Bxf6 {[%clk 0:02:18.2]} 14. Ne2 {[%clk 0:02:29.8]} 14... Bg4 {[%clk 0:02:07.4]}
15. c3 {[%clk 0:02:28.9]} 15... Nd7 {[%clk 0:02:07.4]} 16. Nf4 {[%clk
0:02:23.9]} 16... Bg5 {[%clk 0:01:50.9]} 17. h3 {[%clk 0:02:17.5]} 17... Bf5
{[%clk 0:01:41.5]} 18. Bxf5 {[%clk 0:01:00.7]} 18... Rxf5 {[%clk 0:01:40.8]} 19.
Nd3 {[%clk 0:01:02.3]} 19... Rxf1+ {[%clk 0:01:32.1]} 20. Kxf1 {[%clk
0:01:04.2]} 20... Rf8+ {[%clk 0:01:31.9]} 21. Kg1 {[%clk 0:01:04.3]} 21... Bxc1
{[%clk 0:01:02.8]} 22. Rxc1 {[%clk 0:01:06.2]} 22... Nf6 {[%clk 0:01:03.4]} 23.
a4 {[%clk 0:01:06]} 23... Ne4 {[%clk 0:01:00.1]} 24. a5 {[%clk 0:01:05.3]} 24...
a6 {[%clk 0:01:00.1]} 25. c4 {[%clk 0:00:46.6]} 25... dxc4 {[%clk 0:00:57.6]}
26. Rxc4 {[%clk 0:00:48.5]} 26... Nd6 {[%clk 0:00:58.7]} 27. Rb4 {[%clk
0:00:39.6]} 27... Nb5 {[%clk 0:00:59]} 28. Nc5 {[%clk 0:00:41]} 28... Rf7 {[%clk
0:00:50.1]} 29. Kh2 {[%clk 0:00:29.2]} 29... Kf8 {[%clk 0:00:50.4]} 30. Kg3
{[%clk 0:00:30.5]} 30... Ke8 {[%clk 0:00:51.5]} 31. Rb3 {[%clk 0:00:29.5]} 31...
Kd8 {[%clk 0:00:49.3]} 32. Re3 {[%clk 0:00:29.7]} 32... Kc7 {[%clk 0:00:44.8]}
33. Re4 {[%clk 0:00:29.4]} 33... Nd6 {[%clk 0:00:39.1]} 34. Ne6+ {[%clk
0:00:23.4]} 34... Kd7 {[%clk 0:00:36.8]} 35. Re2 {[%clk 0:00:21.8]} 35... Nc4
{[%clk 0:00:20.3]} 36. b4 {[%clk 0:00:20]} 36... Nd6 {[%clk 0:00:20.1]} 37. Nc5+
{[%clk 0:00:21.1]} 37... Kc7 {[%clk 0:00:20.5]} 38. Ne6+ {[%clk 0:00:22.4]}
38... Kd7 {[%clk 0:00:21.6]} 39. Nc5+ {[%clk 0:00:20.9]} 39... Kc7 {[%clk
0:00:22.5]} 40. Ne6+ {[%clk 0:00:17.9]} 40... Kc8 {[%clk 0:00:23.3]} 41. Re5
{[%clk 0:00:14.9]} 41... Nb5 {[%clk 0:00:20.4]} 42. d5 {[%clk 0:00:13.8]} 42...
cxd5 {[%clk 0:00:17.5]} 43. Rxd5 {[%clk 0:00:15.7]} 43... Rd7 {[%clk 0:00:15.4]}
44. Rc5+ {[%clk 0:00:05.9]} 44... Kb8 {[%clk 0:00:15.9]} 45. Kf4 {[%clk
0:00:05.7]} 45... Nd4 {[%clk 0:00:13.9]} 46. Ke5 {[%clk 0:00:03.8]} 46... Nc6+
{[%clk 0:00:13]} 47. Ke4 {[%clk 0:00:03.8]} 47... Nxb4 {[%clk 0:00:13.5]} 48.
Nf8 {[%clk 0:00:05]} 48... Re7+ {[%clk 0:00:12.8]} 49. Kf5 {[%clk 0:00:05.9]}
49... h6 {[%clk 0:00:10.8]} 50. Kg6 {[%clk 0:00:05.9]} 50... Nc6 {[%clk
0:00:11.8]} 51. g4 {[%clk 0:00:06.8]} 51... Ne5+ {[%clk 0:00:12.5]} 52. Rxe5
{[%clk 0:00:07.9]} 52... Rxe5 {[%clk 0:00:12.5]} 53. Nd7+ {[%clk 0:00:09.5]}
53... Kc7 {[%clk 0:00:14.1]} 54. Nxe5 {[%clk 0:00:11.4]} 54... b5 {[%clk
0:00:15.2]} 55. axb6+ {[%clk 0:00:12.1]} 55... Kxb6 {[%clk 0:00:16.1]} 56. Kxg7
{[%clk 0:00:14]} 56... Kb5 {[%clk 0:00:17.4]} 57. Kxh6 {[%clk 0:00:14.2]} 57...
a5 {[%clk 0:00:18.7]} 58. g5 {[%clk 0:00:15.1]} 58... a4 {[%clk 0:00:20.1]} 59.
Nd3 {[%clk 0:00:16]} 59... a3 {[%clk 0:00:20.6]} 60. Nc1 {[%clk 0:00:17.5]} 1-0

[Event "*** Titled Tuesday Blitz"]
[Site "Chess.com"]
[Date "2018.08.07"]
[Round "4"]
[White "FairChess_on_YouTube"]
[Black "Vuk2000"]
[Result "1-0"]
[WhiteElo "2964"]
[BlackElo "2681"]
[TimeControl "180+2"]
[EndTime "13:50:11 PDT"]
[Termination "FairChess_on_YouTube won by resignation"]

1. e4 {[%clk 0:02:57.7]} 1... d5 {[%clk 0:03:00.7]} 2. exd5 {[%clk 0:02:58.5]}
2... Qxd5 {[%clk 0:03:02.6]} 3. Nc3 {[%clk 0:03:00.1]} 3... Qd6 {[%clk
0:03:03.9]} 4. Nf3 {[%clk 0:03:00.3]} 4... Nf6 {[%clk 0:03:04.9]} 5. d4 {[%clk
0:03:01.2]} 5... c6 {[%clk 0:03:05.9]} 6. Ne5 {[%clk 0:03:01.8]} 6... Nbd7
{[%clk 0:03:06.8]} 7. Nc4 {[%clk 0:03:02.6]} 7... Qc7 {[%clk 0:03:07.5]} 8. Qf3
{[%clk 0:03:03.5]} 8... Nb6 {[%clk 0:03:07.5]} 9. Bf4 {[%clk 0:03:04]} 9... Qd8
{[%clk 0:03:08.5]} 10. Ne5 {[%clk 0:03:03.1]} 10... Be6 {[%clk 0:03:03.8]} 11.
Rd1 {[%clk 0:02:53.1]} 11... Nbd5 {[%clk 0:02:56.3]} 12. Be2 {[%clk 0:02:44.6]}
12... Nxf4 {[%clk 0:02:42.7]} 13. Qxf4 {[%clk 0:02:45.4]} 13... g6 {[%clk
0:02:43.9]} 14. O-O {[%clk 0:02:44.9]} 14... Bg7 {[%clk 0:02:44.4]} 15. Rfe1
{[%clk 0:02:44]} 15... O-O {[%clk 0:02:44.3]} 16. a3 {[%clk 0:02:44.6]} 16...
Nd7 {[%clk 0:02:28]} 17. Bc4 {[%clk 0:02:38.9]} 17... Bxc4 {[%clk 0:02:25.5]}
18. Nxc4 {[%clk 0:02:40.8]} 18... e6 {[%clk 0:02:13.3]} 19. Ne4 {[%clk
0:02:37.5]} 19... Nf6 {[%clk 0:02:05.5]} 20. Nxf6+ {[%clk 0:02:25.6]} 20... Bxf6
{[%clk 0:01:58.6]} 21. c3 {[%clk 0:02:22.2]} 21... Be7 {[%clk 0:01:32.9]} 22. g3
{[%clk 0:02:15.7]} 22... Qd5 {[%clk 0:01:30.4]} 23. Ne3 {[%clk 0:02:15.9]} 23...
Qg5 {[%clk 0:01:28.6]} 24. Qe4 {[%clk 0:02:15.9]} 24... h5 {[%clk 0:01:24.6]}
25. f4 {[%clk 0:02:13.1]} 25... Qb5 {[%clk 0:01:24.5]} 26. Rd2 {[%clk
0:02:12.5]} 26... Rad8 {[%clk 0:01:20.3]} 27. Kg2 {[%clk 0:02:05.6]} 27... Bf6
{[%clk 0:01:15.5]} 28. Rf2 {[%clk 0:02:05.2]} 28... Bg7 {[%clk 0:01:04.9]} 29.
h3 {[%clk 0:02:05.8]} 29... c5 {[%clk 0:01:05]} 30. dxc5 {[%clk 0:01:57.9]}
30... Qxc5 {[%clk 0:00:40.4]} 31. Qxb7 {[%clk 0:01:57.7]} 31... Rd3 {[%clk
0:00:40.7]} 32. Qe4 {[%clk 0:01:57.7]} 32... Rfd8 {[%clk 0:00:40.8]} 33. g4
{[%clk 0:01:49.1]} 33... hxg4 {[%clk 0:00:40.3]} 34. hxg4 {[%clk 0:01:51]} 34...
Qb6 {[%clk 0:00:31.2]} 35. Nc4 {[%clk 0:01:15.4]} 35... Qc5 {[%clk 0:00:26.6]}
36. f5 {[%clk 0:00:59.5]} 36... exf5 {[%clk 0:00:19.7]} 37. gxf5 {[%clk
0:01:00.5]} 37... gxf5 {[%clk 0:00:20.8]} 38. Rxf5 {[%clk 0:00:56.2]} 38... Qc7
{[%clk 0:00:14.7]} 39. Rg5 {[%clk 0:00:51.3]} 39... f6 {[%clk 0:00:07.5]} 40.
Rg4 {[%clk 0:00:38.6]} 40... Kf8 {[%clk 0:00:08.8]} 41. Re2 {[%clk 0:00:30]}
41... R3d5 {[%clk 0:00:09.7]} 42. Qf3 {[%clk 0:00:24.2]} 42... Rd3 {[%clk
0:00:08.4]} 43. Ne3 {[%clk 0:00:22.3]} 43... Rd2 {[%clk 0:00:06.9]} 44. Nf5
{[%clk 0:00:18.7]} 44... Qe5 {[%clk 0:00:04.4]} 45. Re4 {[%clk 0:00:12.4]} 45...
Qb5 {[%clk 0:00:05.5]} 46. Qg4 {[%clk 0:00:10.8]} 46... Rxe2+ {[%clk 0:00:05.4]}
47. Rxe2 {[%clk 0:00:11.3]} 47... Qb7+ {[%clk 0:00:06.9]} 48. Qf3 {[%clk
0:00:11.3]} 48... Qc7 {[%clk 0:00:06.6]} 49. Qe4 {[%clk 0:00:11.3]} 49... Qd7
{[%clk 0:00:07.1]} 50. Qb4+ {[%clk 0:00:11.9]} 50... Kg8 {[%clk 0:00:07.7]} 51.
Qc4+ {[%clk 0:00:13.1]} 51... Kh8 {[%clk 0:00:05]} 52. Qh4+ {[%clk 0:00:13.6]}
52... Kg8 {[%clk 0:00:06.1]} 53. Ne7+ {[%clk 0:00:12]} 53... Kf8 {[%clk
0:00:05.7]} 54. Qc4 {[%clk 0:00:13.4]} 54... Qxe7 {[%clk 0:00:03]} 55. Rxe7
{[%clk 0:00:13.7]} 55... Kxe7 {[%clk 0:00:04.9]} 56. Qc5+ {[%clk 0:00:15]} 56...
Kf7 {[%clk 0:00:04.6]} 57. Qc7+ {[%clk 0:00:15]} 57... Kg6 {[%clk 0:00:06.5]}
58. Qxd8 {[%clk 0:00:15.8]} 1-0

[Event "*** Titled Tuesday Blitz"]
[Site "Chess.com"]
[Date "2018.08.07"]
[Round "4"]
[White "Karina_Oparina"]
[Black "saraswathii"]
[Result "1/2-1/2"]
[WhiteElo "2151"]
[BlackElo "2277"]
[TimeControl "180+2"]
[EndTime "13:50:26 PDT"]
[Termination "Game drawn - insufficient material"]

1. d4 {[%clk 0:02:34.9]} 1... Nf6 {[%clk 0:02:58.8]} 2. Nf3 {[%clk 0:02:34.7]}
2... g6 {[%clk 0:02:57.7]} 3. g3 {[%clk 0:02:35.3]} 3... Bg7 {[%clk 0:02:56.8]}
4. Bg2 {[%clk 0:02:36.1]} 4... d6 {[%clk 0:02:55.9]} 5. O-O {[%clk 0:02:36.9]}
5... O-O {[%clk 0:02:55.9]} 6. c4 {[%clk 0:02:38.1]} 6... Nbd7 {[%clk
0:02:54.5]} 7. Nc3 {[%clk 0:02:38.4]} 7... e5 {[%clk 0:02:54.4]} 8. e4 {[%clk
0:02:39]} 8... exd4 {[%clk 0:02:54.3]} 9. Nxd4 {[%clk 0:02:39.8]} 9... a5 {[%clk
0:02:52.4]} 10. h3 {[%clk 0:02:39.3]} 10... Nc5 {[%clk 0:02:49]} 11. Re1 {[%clk
0:02:37.6]} 11... Re8 {[%clk 0:02:46.1]} 12. f3 {[%clk 0:02:32.5]} 12... Ne6
{[%clk 0:02:43.8]} 13. Be3 {[%clk 0:02:29.9]} 13... Nxd4 {[%clk 0:02:43.1]} 14.
Bxd4 {[%clk 0:02:28.6]} 14... Nh5 {[%clk 0:02:43.5]} 15. Kh2 {[%clk 0:02:17.8]}
15... Qg5 {[%clk 0:02:40.1]} 16. Ne2 {[%clk 0:02:14.8]} 16... Be6 {[%clk
0:02:36.6]} 17. f4 {[%clk 0:02:11.2]} 17... Qh6 {[%clk 0:02:32.2]} 18. Qd3
{[%clk 0:01:41.9]} 18... Rad8 {[%clk 0:02:24.8]} 19. Rad1 {[%clk 0:01:38.9]}
19... c6 {[%clk 0:02:22.9]} 20. b3 {[%clk 0:01:34.7]} 20... d5 {[%clk
0:02:21.5]} 21. Bxg7 {[%clk 0:01:27.2]} 21... Qxg7 {[%clk 0:02:18.2]} 22. cxd5
{[%clk 0:01:25.6]} 22... cxd5 {[%clk 0:02:19]} 23. exd5 {[%clk 0:01:25.7]} 23...
Nf6 {[%clk 0:02:18.4]} 24. Nc3 {[%clk 0:01:16]} 24... Bf5 {[%clk 0:02:15.2]} 25.
Qb5 {[%clk 0:01:10.6]} 25... Rxe1 {[%clk 0:02:14.8]} 26. Rxe1 {[%clk 0:01:10.4]}
26... g5 {[%clk 0:02:06.1]} 27. Qxa5 {[%clk 0:01:00.5]} 27... Rc8 {[%clk
0:02:04.8]} 28. fxg5 {[%clk 0:00:57.2]} 28... Qxg5 {[%clk 0:02:01.4]} 29. d6
{[%clk 0:00:57]} 29... b6 {[%clk 0:01:55.4]} 30. Qb4 {[%clk 0:00:36.8]} 30...
Qd2 {[%clk 0:01:55.4]} 31. Re5 {[%clk 0:00:28]} 31... Bxh3 {[%clk 0:01:29.5]}
32. Re2 {[%clk 0:00:18]} 32... Qxc3 {[%clk 0:01:07.2]} 33. Qxc3 {[%clk
0:00:17.5]} 33... Rxc3 {[%clk 0:01:09.1]} 34. Kxh3 {[%clk 0:00:13.6]} 34... Rd3
{[%clk 0:01:05.7]} 35. Rc2 {[%clk 0:00:12.9]} 35... Nh5 {[%clk 0:00:59.7]} 36.
Rc8+ {[%clk 0:00:11.5]} 36... Kg7 {[%clk 0:01:00]} 37. Bf3 {[%clk 0:00:09.1]}
37... Nf6 {[%clk 0:00:44.5]} 38. Bg2 {[%clk 0:00:09.3]} 38... Rxd6 {[%clk
0:00:42.7]} 39. Rc6 {[%clk 0:00:09.3]} 39... Rd2 {[%clk 0:00:42.6]} 40. a4
{[%clk 0:00:09.8]} 40... Rd3 {[%clk 0:00:40.6]} 41. Rxb6 {[%clk 0:00:10.8]}
41... Nh5 {[%clk 0:00:41.1]} 42. Bf3 {[%clk 0:00:11.1]} 42... Nf6 {[%clk
0:00:36.1]} 43. Bg2 {[%clk 0:00:10.7]} 43... Nh5 {[%clk 0:00:35.6]} 44. Bf3
{[%clk 0:00:11.1]} 44... Rxf3 {[%clk 0:00:27.6]} 45. Kg4 {[%clk 0:00:11.6]}
45... Rf6 {[%clk 0:00:28.5]} 46. Rb5 {[%clk 0:00:09.7]} 46... Nxg3 {[%clk
0:00:23.4]} 47. Kxg3 {[%clk 0:00:10.3]} 47... Kf8 {[%clk 0:00:23.1]} 48. a5
{[%clk 0:00:10.5]} 48... Ke7 {[%clk 0:00:24]} 49. b4 {[%clk 0:00:11.1]} 49...
Kd7 {[%clk 0:00:23.7]} 50. Rb7+ {[%clk 0:00:11.4]} 50... Kc8 {[%clk 0:00:23.1]}
51. Rb5 {[%clk 0:00:11.8]} 51... Kc7 {[%clk 0:00:23.4]} 52. Kg4 {[%clk
0:00:11.3]} 52... Re6 {[%clk 0:00:21.2]} 53. Kf4 {[%clk 0:00:10.4]} 53... Re1
{[%clk 0:00:18]} 54. Rf5 {[%clk 0:00:10.2]} 54... Kc6 {[%clk 0:00:18.2]} 55. Kg5
{[%clk 0:00:10]} 55... Rb1 {[%clk 0:00:18.5]} 56. Rxf7 {[%clk 0:00:10.3]} 56...
Rxb4 {[%clk 0:00:18.9]} 57. Rxh7 {[%clk 0:00:11]} 57... Rb5+ {[%clk 0:00:20.2]}
58. Kg4 {[%clk 0:00:11.3]} 58... Rxa5 {[%clk 0:00:20.7]} 59. Rh6+ {[%clk
0:00:12.1]} 59... Kb5 {[%clk 0:00:20.9]} 60. Rh5+ {[%clk 0:00:12.2]} 60... Kb4
{[%clk 0:00:22.8]} 61. Rxa5 {[%clk 0:00:12.8]} 61... Kxa5 {[%clk 0:00:24.7]}
1/2-1/2

[Event "*** Titled Tuesday Blitz"]
[Site "Chess.com"]
[Date "2018.08.07"]
[Round "4"]
[White "Didici"]
[Black "evgenysharapov"]
[Result "1/2-1/2"]
[WhiteElo "2542"]
[BlackElo "2338"]
[TimeControl "180+2"]
[EndTime "13:50:29 PDT"]
[Termination "Game drawn by stalemate"]

1. d4 {[%clk 0:03:01.9]} 1... d5 {[%clk 0:03:00.3]} 2. c4 {[%clk 0:02:56.7]}
2... c6 {[%clk 0:03:00.9]} 3. Nc3 {[%clk 0:02:55.4]} 3... Nf6 {[%clk 0:03:01]}
4. Nf3 {[%clk 0:02:55.6]} 4... e6 {[%clk 0:03:01.6]} 5. g3 {[%clk 0:02:49.6]}
5... Be7 {[%clk 0:02:56.9]} 6. Bg2 {[%clk 0:02:49.2]} 6... O-O {[%clk
0:02:57.3]} 7. O-O {[%clk 0:02:51.1]} 7... Nbd7 {[%clk 0:02:56]} 8. Qd3 {[%clk
0:02:48.8]} 8... b6 {[%clk 0:02:55.6]} 9. e4 {[%clk 0:02:48.5]} 9... dxe4 {[%clk
0:02:53.4]} 10. Nxe4 {[%clk 0:02:48.6]} 10... Bb7 {[%clk 0:02:52.4]} 11. Nxf6+
{[%clk 0:02:39.5]} 11... Bxf6 {[%clk 0:02:49.9]} 12. Bf4 {[%clk 0:02:31.5]}
12... c5 {[%clk 0:02:49.2]} 13. Rad1 {[%clk 0:02:27.8]} 13... cxd4 {[%clk
0:01:52]} 14. Nxd4 {[%clk 0:02:17]} 14... Bxg2 {[%clk 0:01:51]} 15. Kxg2 {[%clk
0:02:18.9]} 15... Nc5 {[%clk 0:01:45]} 16. Qe3 {[%clk 0:02:08.7]} 16... Qc8
{[%clk 0:01:34.4]} 17. b3 {[%clk 0:01:49.2]} 17... Qb7+ {[%clk 0:01:33.8]} 18.
Kg1 {[%clk 0:01:30.2]} 18... Rfd8 {[%clk 0:01:33.6]} 19. Nb5 {[%clk 0:01:29.5]}
19... Qe4 {[%clk 0:00:40.3]} 20. Qxe4 {[%clk 0:01:05.6]} 20... Nxe4 {[%clk
0:00:39.2]} 21. Bc7 {[%clk 0:01:07.3]} 21... Rdc8 {[%clk 0:00:32.3]} 22. Nd6
{[%clk 0:00:45.9]} 22... Rxc7 {[%clk 0:00:25]} 23. Nxe4 {[%clk 0:00:46.5]} 23...
Be7 {[%clk 0:00:25.4]} 24. Rd3 {[%clk 0:00:44.8]} 24... Kf8 {[%clk 0:00:23.7]}
25. Rfd1 {[%clk 0:00:45.5]} 25... Ke8 {[%clk 0:00:24.2]} 26. Nd6+ {[%clk
0:00:44.2]} 26... Bxd6 {[%clk 0:00:23.9]} 27. Rxd6 {[%clk 0:00:46.1]} 27... Ke7
{[%clk 0:00:24.3]} 28. f4 {[%clk 0:00:42.4]} 28... Rb8 {[%clk 0:00:24.9]} 29.
Kf2 {[%clk 0:00:43.1]} 29... b5 {[%clk 0:00:25.6]} 30. c5 {[%clk 0:00:28]} 30...
Rxc5 {[%clk 0:00:18.6]} 31. Rd7+ {[%clk 0:00:27.7]} 31... Kf6 {[%clk 0:00:19.5]}
32. Rxa7 {[%clk 0:00:29.1]} 32... Rc2+ {[%clk 0:00:19.9]} 33. Kf3 {[%clk
0:00:30.4]} 33... Rxh2 {[%clk 0:00:19.6]} 34. Rdd7 {[%clk 0:00:31.7]} 34... Rf8
{[%clk 0:00:20]} 35. Rdb7 {[%clk 0:00:31.5]} 35... h5 {[%clk 0:00:19.1]} 36.
Rxb5 {[%clk 0:00:32.4]} 36... h4 {[%clk 0:00:19.9]} 37. gxh4 {[%clk 0:00:33.3]}
37... Rxh4 {[%clk 0:00:20.2]} 38. a4 {[%clk 0:00:33.9]} 38... Rh3+ {[%clk
0:00:19.9]} 39. Ke4 {[%clk 0:00:31.7]} 39... Rh4 {[%clk 0:00:18.3]} 40. a5
{[%clk 0:00:31.8]} 40... g5 {[%clk 0:00:17.2]} 41. Rxg5 {[%clk 0:00:31.4]} 41...
Rb8 {[%clk 0:00:17.1]} 42. a6 {[%clk 0:00:12.5]} 42... Rb4+ {[%clk 0:00:16.9]}
43. Kf3 {[%clk 0:00:11.9]} 43... Rxb3+ {[%clk 0:00:17.7]} 44. Kg2 {[%clk
0:00:13]} 44... Rxf4 {[%clk 0:00:17.8]} 45. Rc5 {[%clk 0:00:14]} 45... Ra4
{[%clk 0:00:17.8]} 46. Rc2 {[%clk 0:00:14.6]} 46... Rba3 {[%clk 0:00:15.4]} 47.
Rf2+ {[%clk 0:00:15.4]} 47... Ke5 {[%clk 0:00:16.3]} 48. Re2+ {[%clk 0:00:14.9]}
48... Re4 {[%clk 0:00:16.2]} 49. Rxe4+ {[%clk 0:00:08.4]} 49... Kxe4 {[%clk
0:00:17.1]} 50. Rxf7 {[%clk 0:00:10.3]} 50... Rxa6 {[%clk 0:00:17.1]} 51. Kf2
{[%clk 0:00:12.2]} 51... Ra2+ {[%clk 0:00:17.7]} 52. Kf1 {[%clk 0:00:12.9]}
52... e5 {[%clk 0:00:18]} 53. Rh7 {[%clk 0:00:13.8]} 53... Kd4 {[%clk
0:00:15.6]} 54. Rh3 {[%clk 0:00:14.2]} 54... e4 {[%clk 0:00:16.4]} 55. Ke1
{[%clk 0:00:15.8]} 55... Rc2 {[%clk 0:00:12.9]} 56. Rg3 {[%clk 0:00:16.8]} 56...
Rc3 {[%clk 0:00:12.6]} 57. Rxc3 {[%clk 0:00:16.9]} 57... Kxc3 {[%clk 0:00:13.3]}
58. Ke2 {[%clk 0:00:18.8]} 58... Kd4 {[%clk 0:00:14.3]} 59. Kd2 {[%clk
0:00:20.4]} 59... e3+ {[%clk 0:00:15.5]} 60. Ke2 {[%clk 0:00:22]} 60... Ke4
{[%clk 0:00:16.6]} 61. Ke1 {[%clk 0:00:23.6]} 61... Ke5 {[%clk 0:00:17.1]} 62.
Ke2 {[%clk 0:00:24.8]} 62... Ke4 {[%clk 0:00:17.6]} 63. Ke1 {[%clk 0:00:26.4]}
63... Kf4 {[%clk 0:00:18.2]} 64. Ke2 {[%clk 0:00:28]} 64... Ke4 {[%clk
0:00:19.3]} 65. Ke1 {[%clk 0:00:29.6]} 65... Kf3 {[%clk 0:00:20.3]} 66. Kf1
{[%clk 0:00:30.5]} 66... e2+ {[%clk 0:00:21.5]} 67. Ke1 {[%clk 0:00:31.5]} 67...
Ke3 {[%clk 0:00:22.5]} 1/2-1/2